﻿DEPARTMENT FAMILY,ENTITY,Date,Expense Type,Expense Area,Supplier,Transaction number,Amount,Description
DEPARTMENT OF HEALTH,BLACKPOOL TEACHING HOSPITALS NHS FT ,Apr-22,Contractual Clinical Services,Mri,Inhealth Ltd,IHLIN0039519,"26,160.00",Mobile MRI Cardiac provision
DEPARTMENT OF HEALTH,BLACKPOOL TEACHING HOSPITALS NHS FT ,Apr-22,Contractual Clinical Services,Mri,Inhealth Ltd,IHLIN0039520,"25,680.00",Mobile MRI Cardiac provision
DEPARTMENT OF HEALTH,BLACKPOOL TEACHING HOSPITALS NHS FT ,Apr-22,Contractual Clinical Services,Contractual Clinical Services,The Christie NHS Foundation Trust,37922,"188,324.00",Admin - Radiology
DEPARTMENT OF HEALTH,BLACKPOOL TEACHING HOSPITALS NHS FT ,Apr-22,Contractual Clinical Services,Contractual Clinical Services,Agfa Finance,DEIN/22040003,"135,909.60",Admin - Radiology
DEPARTMENT OF HEALTH,BLACKPOOL TEACHING HOSPITALS NHS FT ,Apr-22,Contractual Clinical Services,Contractual Clinical Services,Public Health England,5006621,"35,936.18",Laboratory External Tests
DEPARTMENT OF HEALTH,BLACKPOOL TEACHING HOSPITALS NHS FT ,Apr-22,Contractual Clinical Services,Contractual Clinical Services,NHS Blood And Transplant,7001563,"38,438.01",Blood Products
DEPARTMENT OF HEALTH,BLACKPOOL TEACHING HOSPITALS NHS FT ,Apr-22,Contractual Clinical Services,Contractual Clinical Services,NHS Blood And Transplant,7003850,"41,280.88",Blood Products
DEPARTMENT OF HEALTH,BLACKPOOL TEACHING HOSPITALS NHS FT ,Apr-22,Contractual Clinical Services,Gastro Unit,Keymed (Medical & Industrial Equipment) Ltd,CD2754923,"60,252.36",Med Surg Eqpt General
DEPARTMENT OF HEALTH,BLACKPOOL TEACHING HOSPITALS NHS FT ,Apr-22,Contractual Clinical Services,Contractual Clinical Services,Spire Healthcare,RXLFYCICF2122M10,"118,767.83",Contractual Clinical Services
DEPARTMENT OF HEALTH,BLACKPOOL TEACHING HOSPITALS NHS FT ,Apr-22,Contractual Clinical Services,Contractual Clinical Services,A Nigam Ltd,35087,"38,273.60",Contractual Clinical Services
DEPARTMENT OF HEALTH,BLACKPOOL TEACHING HOSPITALS NHS FT ,Apr-22,Contractual Clinical Services,Medical Staff - Palliative Care,Trinity Hospice & Palliative Care Services Ltd,1271,"87,871.99",Contractual Clinical Services
DEPARTMENT OF HEALTH,BLACKPOOL TEACHING HOSPITALS NHS FT ,Apr-22,Facilities ,Soft FM ,Express Launderers,4524,"26,388.78",Laundry / Linen Tender
DEPARTMENT OF HEALTH,BLACKPOOL TEACHING HOSPITALS NHS FT ,Apr-22,Facilities ,Hard FM ,Atlas BFW Management Ltd,1710000567,"5,847,809.92",Facilities Management Contract 
DEPARTMENT OF HEALTH,BLACKPOOL TEACHING HOSPITALS NHS FT ,Apr-22,Facilities ,Refuse & Clinical Waste,Srcl Ltd,0001667913,"26,030.20",Clinical Waste
DEPARTMENT OF HEALTH,BLACKPOOL TEACHING HOSPITALS NHS FT ,Apr-22,Facilities ,Refuse & Clinical Waste,Srcl Ltd,0001677339,"25,416.66",Clinical Waste
DEPARTMENT OF HEALTH,BLACKPOOL TEACHING HOSPITALS NHS FT ,Apr-22,Facilities ,Refuse & Clinical Waste,Srcl Ltd,0001696725,"25,526.96",Clinical Waste
DEPARTMENT OF HEALTH,BLACKPOOL TEACHING HOSPITALS NHS FT ,Apr-22,Corporate ,Information Governance,Blackpool Borough Council,30166272,"33,600.00",Packing and Storage
DEPARTMENT OF HEALTH,BLACKPOOL TEACHING HOSPITALS NHS FT ,Apr-22,Corporate ,RAID Services,Blue Prism Limited,INV23223,"54,000.00",Computer Maintenance
DEPARTMENT OF HEALTH,BLACKPOOL TEACHING HOSPITALS NHS FT ,Apr-22,Corporate ,Covid-19 Vaccine Studies,Layton Medical Centre,NOVA09,"45,000.00",Research And Development
DEPARTMENT OF HEALTH,BLACKPOOL TEACHING HOSPITALS NHS FT ,Apr-22,Corporate ,Corporate ,East Lancashire Hospitals NHS Trust,E0106963,"44,426.08",Multi-Divisional charge 
DEPARTMENT OF HEALTH,BLACKPOOL TEACHING HOSPITALS NHS FT ,Apr-22,Corporate ,Finance,Griffiths & Armour Ltd,514086715,"27,807.36",Insurance Costs
DEPARTMENT OF HEALTH,BLACKPOOL TEACHING HOSPITALS NHS FT ,Apr-22,Corporate ,Finance,Griffiths & Armour Ltd,514088227,"108,119.20",Insurance Costs
DEPARTMENT OF HEALTH,BLACKPOOL TEACHING HOSPITALS NHS FT ,Apr-22,Corporate ,Finance,East Lancashire Hospitals NHS Trust,E0107109,"47,792.16",Procurement Services
DEPARTMENT OF HEALTH,BLACKPOOL TEACHING HOSPITALS NHS FT ,Apr-22,Corporate ,Finance,East Lancashire Hospitals NHS Trust,E0107296,"47,792.16",Procurement Services
DEPARTMENT OF HEALTH,BLACKPOOL TEACHING HOSPITALS NHS FT ,Apr-22,Corporate ,Corporate ,MBI Healthcare Technologies Ltd,INV-0208,"71,395.92",External Consultancy Fees
DEPARTMENT OF HEALTH,BLACKPOOL TEACHING HOSPITALS NHS FT ,Apr-22,Facilities ,Ict Procurement Expenditure,Insight Direct (Uk) Ltd,2100185494,"71,916.00",Computer Hardware Purchases
DEPARTMENT OF HEALTH,BLACKPOOL TEACHING HOSPITALS NHS FT ,Apr-22,Facilities ,Ict Maintenance Services,Ascribe Ltd,PJIN-304355,"55,500.00",Computer Maintenance
DEPARTMENT OF HEALTH,BLACKPOOL TEACHING HOSPITALS NHS FT ,Apr-22,Facilities ,Ict Maintenance Services,Dell Corporation Ltd,7402795622,"28,824.00",Computer Maintenance
DEPARTMENT OF HEALTH,BLACKPOOL TEACHING HOSPITALS NHS FT ,Apr-22,Facilities ,Ict Maintenance Services,Integrated Medical Solutions Ltd,SIN602800,"67,294.01",Computer Maintenance
DEPARTMENT OF HEALTH,BLACKPOOL TEACHING HOSPITALS NHS FT ,Apr-22,Facilities ,Ict Operations,Dell Corporation Ltd,7402803819,"33,351.26",Computer Software / License Fees
DEPARTMENT OF HEALTH,BLACKPOOL TEACHING HOSPITALS NHS FT ,Apr-22,Facilities ,Ict Operations,Microsoft Ltd,9899239691,"38,218.80",External Consultancy Fees
DEPARTMENT OF HEALTH,BLACKPOOL TEACHING HOSPITALS NHS FT ,Apr-22,Facilities ,Ict Communications,Dell Corporation Ltd,7402800991,"33,462.18",External Consultancy Fees
DEPARTMENT OF HEALTH,BLACKPOOL TEACHING HOSPITALS NHS FT ,Apr-22,Facilities ,Ict Communications,Charterhouse Voice & Data Limited,QUO-30703-G8K0B6,"164,423.40",Telephone Rental and Call Charges
DEPARTMENT OF HEALTH,BLACKPOOL TEACHING HOSPITALS NHS FT ,Apr-22,Facilities ,Ict Communications,Charterhouse Voice & Data Limited,QUO-30855-W1B9C3,"28,093.38",Telephone Rental and Call Charges
DEPARTMENT OF HEALTH,BLACKPOOL TEACHING HOSPITALS NHS FT ,Apr-22,Corporate ,Corporate ,Browne Jacobson Llp,IN-000108779,"27,750.00",Legal Fees
DEPARTMENT OF HEALTH,BLACKPOOL TEACHING HOSPITALS NHS FT ,Apr-22,Corporate ,Corporate ,Browne Jacobson Llp,IN-000108782,"29,400.00",Legal Fees
DEPARTMENT OF HEALTH,BLACKPOOL TEACHING HOSPITALS NHS FT ,Apr-22,Corporate ,Corporate ,Blackpool Borough Council,30166307,"63,000.00",Rent
DEPARTMENT OF HEALTH,BLACKPOOL TEACHING HOSPITALS NHS FT ,Apr-22,Facilities ,Ict Telecommunications,Bt Global Services,0790341814,"29,239.27",Telephone Rental and Call Charges
DEPARTMENT OF HEALTH,BLACKPOOL TEACHING HOSPITALS NHS FT ,Apr-22,Facilities ,Ict Telecommunications,Bt Telephone Payment Centre,VP86052270M15801,"31,138.80",Telephone Rental and Call Charges
DEPARTMENT OF HEALTH,BLACKPOOL TEACHING HOSPITALS NHS FT ,Apr-22,Corporate ,Corporate ,East Lancashire Hospitals NHS Trust,E0106965,"26,966.58",Management & Admin Personnel
DEPARTMENT OF HEALTH,BLACKPOOL TEACHING HOSPITALS NHS FT ,Apr-22,Facilities ,It Training,Traineasy Ltd,TEL3900,"28,020.00",Computer Software / License Fees
DEPARTMENT OF HEALTH,BLACKPOOL TEACHING HOSPITALS NHS FT ,Apr-22,Corporate ,Corporate ,Care Quality Commission,43122465,"362,319.00",Books Journals and Subscriptions
DEPARTMENT OF HEALTH,BLACKPOOL TEACHING HOSPITALS NHS FT ,Apr-22,Facilities ,Ict Managed Print,Canon (UK) Ltd,402378114,"63,380.59",Contract : Photocopying Rental And Charges
DEPARTMENT OF HEALTH,BLACKPOOL TEACHING HOSPITALS NHS FT ,Apr-22,Facilities ,Ict Managed Print,Canon (UK) Ltd,770891447,"29,428.92",Contract : Photocopying Rental And Charges
DEPARTMENT OF HEALTH,BLACKPOOL TEACHING HOSPITALS NHS FT ,Apr-22,Multi-Divisional charge ,Multi-Divisional charge ,Retinue Solutions Ltd,6823,"223,059.31",Multi-Divisional charge 
DEPARTMENT OF HEALTH,BLACKPOOL TEACHING HOSPITALS NHS FT ,Apr-22,Multi-Divisional charge ,Multi-Divisional charge ,Retinue Solutions Ltd,6824,"170,100.98",Multi-Divisional charge 
DEPARTMENT OF HEALTH,BLACKPOOL TEACHING HOSPITALS NHS FT ,Apr-22,Multi-Divisional charge ,Multi-Divisional charge ,Retinue Solutions Ltd,6862,"240,800.81",Multi-Divisional charge 
DEPARTMENT OF HEALTH,BLACKPOOL TEACHING HOSPITALS NHS FT ,Apr-22,Multi-Divisional charge ,Multi-Divisional charge ,Retinue Solutions Ltd,6863,"129,278.29",Multi-Divisional charge 
DEPARTMENT OF HEALTH,BLACKPOOL TEACHING HOSPITALS NHS FT ,Apr-22,Multi-Divisional charge ,Multi-Divisional charge ,Retinue Solutions Ltd,6906,"132,680.03",Multi-Divisional charge 
DEPARTMENT OF HEALTH,BLACKPOOL TEACHING HOSPITALS NHS FT ,Apr-22,Multi-Divisional charge ,Multi-Divisional charge ,Retinue Solutions Ltd,6907,"233,748.24",Multi-Divisional charge 
DEPARTMENT OF HEALTH,BLACKPOOL TEACHING HOSPITALS NHS FT ,Apr-22,Multi-Divisional charge ,Multi-Divisional charge ,Retinue Solutions Ltd,7031,"289,084.97",Multi-Divisional charge 
DEPARTMENT OF HEALTH,BLACKPOOL TEACHING HOSPITALS NHS FT ,Apr-22,Multi-Divisional charge ,Multi-Divisional charge ,Retinue Solutions Ltd,7033,"184,300.43",Multi-Divisional charge 
DEPARTMENT OF HEALTH,BLACKPOOL TEACHING HOSPITALS NHS FT ,Apr-22,Multi-Divisional charge ,Multi-Divisional charge ,Retinue Solutions Ltd,7079,"444,704.21",Multi-Divisional charge 
DEPARTMENT OF HEALTH,BLACKPOOL TEACHING HOSPITALS NHS FT ,Apr-22,Multi-Divisional charge ,Multi-Divisional charge ,Retinue Solutions Ltd,7081,"102,813.56",Multi-Divisional charge 
DEPARTMENT OF HEALTH,BLACKPOOL TEACHING HOSPITALS NHS FT ,Apr-22,Multi-Divisional charge ,Multi-Divisional charge ,Retinue Solutions Ltd,7149,"219,529.57",Multi-Divisional charge 
DEPARTMENT OF HEALTH,BLACKPOOL TEACHING HOSPITALS NHS FT ,Apr-22,Multi-Divisional charge ,Multi-Divisional charge ,Retinue Solutions Ltd,7150,"197,807.99",Multi-Divisional charge 
DEPARTMENT OF HEALTH,BLACKPOOL TEACHING HOSPITALS NHS FT ,Apr-22,Multi-Divisional charge ,Multi-Divisional charge ,Retinue Solutions Ltd,7187,"250,572.42",Multi-Divisional charge 
DEPARTMENT OF HEALTH,BLACKPOOL TEACHING HOSPITALS NHS FT ,Apr-22,Multi-Divisional charge ,Multi-Divisional charge ,Retinue Solutions Ltd,7189,"109,416.64",Multi-Divisional charge 
DEPARTMENT OF HEALTH,BLACKPOOL TEACHING HOSPITALS NHS FT ,Apr-22,Multi-Divisional charge ,Multi-Divisional charge ,Retinue Solutions Ltd,7229,"172,014.37",Multi-Divisional charge 
DEPARTMENT OF HEALTH,BLACKPOOL TEACHING HOSPITALS NHS FT ,Apr-22,Multi-Divisional charge ,Multi-Divisional charge ,Retinue Solutions Ltd,7230,"194,872.75",Multi-Divisional charge 
DEPARTMENT OF HEALTH,BLACKPOOL TEACHING HOSPITALS NHS FT ,Apr-22,Multi-Divisional charge ,Multi-Divisional charge ,Retinue Solutions Ltd,6903RI,"649,804.98",Multi-Divisional charge 
DEPARTMENT OF HEALTH,BLACKPOOL TEACHING HOSPITALS NHS FT ,Apr-22,Families and Integrated Care ,Blackpool District Nursing,Medstrom Ltd,123641,"31,616.70",Med Surg Eqpt Hire
DEPARTMENT OF HEALTH,BLACKPOOL TEACHING HOSPITALS NHS FT ,Apr-22,Families and Integrated Care ,Lancashire Sexual Health,ZHPT Ltd,270,"47,806.24",Property Rental HC Facility 
DEPARTMENT OF HEALTH,BLACKPOOL TEACHING HOSPITALS NHS FT ,Apr-22,Capital Purchases ,Capital Purchases ,KPMG LLP,5502379773,"70,345.20",Capital Purchases 
DEPARTMENT OF HEALTH,BLACKPOOL TEACHING HOSPITALS NHS FT ,Apr-22,Capital Purchases ,Capital Purchases ,Keymed (Medical & Industrial Equipment) Ltd,CD2761596,"107,550.22",Capital Purchases 
DEPARTMENT OF HEALTH,BLACKPOOL TEACHING HOSPITALS NHS FT ,Apr-22,Capital Purchases ,Capital Purchases ,Integrated Medical Solutions Ltd,SIN602799,"29,337.60",Capital Purchases 
DEPARTMENT OF HEALTH,BLACKPOOL TEACHING HOSPITALS NHS FT ,Apr-22,Capital Purchases ,Capital Purchases ,Integrated Medical Solutions Ltd,SIN602798,"55,968.00",Capital Purchases 
DEPARTMENT OF HEALTH,BLACKPOOL TEACHING HOSPITALS NHS FT ,Apr-22,Capital Purchases ,Capital Purchases ,Siemens Healthcare Diagnostics Ltd,1051114817,"54,480.00",Capital Purchases 
DEPARTMENT OF HEALTH,BLACKPOOL TEACHING HOSPITALS NHS FT ,Apr-22,Capital Purchases ,Capital Purchases ,Siemens Healthcare Diagnostics Ltd,1051114820,"54,480.00",Capital Purchases 
DEPARTMENT OF HEALTH,BLACKPOOL TEACHING HOSPITALS NHS FT ,Apr-22,Capital Purchases ,Capital Purchases ,Siemens Healthcare Diagnostics Ltd,1051114821,"54,480.00",Capital Purchases 
DEPARTMENT OF HEALTH,BLACKPOOL TEACHING HOSPITALS NHS FT ,Apr-22,Capital Purchases ,Capital Purchases ,Siemens Healthcare Diagnostics Ltd,1051115709,"42,720.00",Capital Purchases 
DEPARTMENT OF HEALTH,BLACKPOOL TEACHING HOSPITALS NHS FT ,Apr-22,Capital Purchases ,Capital Purchases ,Siemens Healthcare Diagnostics Ltd,1051114422,"532,107.60",Capital Purchases 
DEPARTMENT OF HEALTH,BLACKPOOL TEACHING HOSPITALS NHS FT ,Apr-22,Capital Purchases ,Capital Purchases ,NHS Supply Chain Co-ordination Limited,9522002332,"129,276.00",Capital Purchases 
DEPARTMENT OF HEALTH,BLACKPOOL TEACHING HOSPITALS NHS FT ,Apr-22,Capital Purchases ,Capital Purchases ,Omnicell Ltd,0000008841,"101,801.64",Capital Purchases 
DEPARTMENT OF HEALTH,BLACKPOOL TEACHING HOSPITALS NHS FT ,Apr-22,Capital Purchases ,Capital Purchases ,Omnicell Ltd,0000008844,"32,708.40",Capital Purchases 
DEPARTMENT OF HEALTH,BLACKPOOL TEACHING HOSPITALS NHS FT ,Apr-22,Capital Purchases ,Capital Purchases ,Siemens Healthcare Diagnostics Ltd,1051111778,"118,034.27",Capital Purchases 
DEPARTMENT OF HEALTH,BLACKPOOL TEACHING HOSPITALS NHS FT ,Apr-22,Pharmacy Drugs Inventory ,Pharmacy Drugs Inventory ,Alliance Healthcare Distribution Ltd,I24C52606,"25,623.59",Pharmacy Drugs Inventory 
DEPARTMENT OF HEALTH,BLACKPOOL TEACHING HOSPITALS NHS FT ,Apr-22,Pharmacy Drugs Inventory ,Pharmacy Drugs Inventory ,Alliance Healthcare Distribution Ltd,I24D52431,"83,638.84",Pharmacy Drugs Inventory 
DEPARTMENT OF HEALTH,BLACKPOOL TEACHING HOSPITALS NHS FT ,Apr-22,Pharmacy Drugs Inventory ,Pharmacy Drugs Inventory ,Alliance Healthcare Distribution Ltd,I24P56596,"93,456.07",Pharmacy Drugs Inventory 
DEPARTMENT OF HEALTH,BLACKPOOL TEACHING HOSPITALS NHS FT ,Apr-22,Pharmacy Drugs Inventory ,Pharmacy Drugs Inventory ,Alloga Uk Ltd,SIN103443971,"27,000.00",Pharmacy Drugs Inventory 
DEPARTMENT OF HEALTH,BLACKPOOL TEACHING HOSPITALS NHS FT ,Apr-22,Pharmacy Drugs Inventory ,Pharmacy Drugs Inventory ,Amgen Ltd,964515412,"34,853.76",Pharmacy Drugs Inventory 
DEPARTMENT OF HEALTH,BLACKPOOL TEACHING HOSPITALS NHS FT ,Apr-22,Pharmacy Drugs Inventory ,Pharmacy Drugs Inventory ,Bayer Plc,824C408752,"88,964.46",Pharmacy Drugs Inventory 
DEPARTMENT OF HEALTH,BLACKPOOL TEACHING HOSPITALS NHS FT ,Apr-22,Pharmacy Drugs Inventory ,Pharmacy Drugs Inventory ,Bayer Plc,824C411472,"82,121.04",Pharmacy Drugs Inventory 
DEPARTMENT OF HEALTH,BLACKPOOL TEACHING HOSPITALS NHS FT ,Apr-22,Pharmacy Drugs Inventory ,Pharmacy Drugs Inventory ,Bayer Plc,824C413405,"54,747.36",Pharmacy Drugs Inventory 
DEPARTMENT OF HEALTH,BLACKPOOL TEACHING HOSPITALS NHS FT ,Apr-22,Pharmacy Drugs Inventory ,Pharmacy Drugs Inventory ,Bristol Myers Squibb Pharmaceuticals Ltd,100683042,"27,555.91",Pharmacy Drugs Inventory 
DEPARTMENT OF HEALTH,BLACKPOOL TEACHING HOSPITALS NHS FT ,Apr-22,Pharmacy Drugs Inventory ,Pharmacy Drugs Inventory ,Csl Behring Uk Ltd,994045075,"41,302.00",Pharmacy Drugs Inventory 
DEPARTMENT OF HEALTH,BLACKPOOL TEACHING HOSPITALS NHS FT ,Apr-22,Pharmacy Drugs Inventory ,Pharmacy Drugs Inventory ,Janssen-Cilag Ltd,930839439,"50,077.44",Pharmacy Drugs Inventory 
DEPARTMENT OF HEALTH,BLACKPOOL TEACHING HOSPITALS NHS FT ,Apr-22,Pharmacy Drugs Inventory ,Pharmacy Drugs Inventory ,Novartis Pharmaceuticals Uk Ltd,9256483,"44,776.80",Pharmacy Drugs Inventory 
DEPARTMENT OF HEALTH,BLACKPOOL TEACHING HOSPITALS NHS FT ,Apr-22,Pharmacy Drugs Inventory ,Pharmacy Drugs Inventory ,Novartis Pharmaceuticals Uk Ltd,92562282,"64,108.80",Pharmacy Drugs Inventory 
DEPARTMENT OF HEALTH,BLACKPOOL TEACHING HOSPITALS NHS FT ,Apr-22,Pharmacy Drugs Inventory ,Pharmacy Drugs Inventory ,Novartis Pharmaceuticals Uk Ltd,92581601,"33,530.40",Pharmacy Drugs Inventory 
DEPARTMENT OF HEALTH,BLACKPOOL TEACHING HOSPITALS NHS FT ,Apr-22,Pharmacy Drugs Inventory ,Pharmacy Drugs Inventory ,Novartis Pharmaceuticals Uk Ltd,92583906,"55,784.64",Pharmacy Drugs Inventory 
DEPARTMENT OF HEALTH,BLACKPOOL TEACHING HOSPITALS NHS FT ,Apr-22,Pharmacy Drugs Inventory ,Pharmacy Drugs Inventory ,Novartis Pharmaceuticals Uk Ltd,92596578,"36,974.40",Pharmacy Drugs Inventory 
DEPARTMENT OF HEALTH,BLACKPOOL TEACHING HOSPITALS NHS FT ,Apr-22,Pharmacy Drugs Inventory ,Pharmacy Drugs Inventory ,Roche Products Ltd,1322234535,"45,048.53",Pharmacy Drugs Inventory 
DEPARTMENT OF HEALTH,BLACKPOOL TEACHING HOSPITALS NHS FT ,Apr-22,Pharmacy Drugs Inventory ,Pharmacy Drugs Inventory ,Roche Products Ltd,1322235051,"64,671.74",Pharmacy Drugs Inventory 
DEPARTMENT OF HEALTH,BLACKPOOL TEACHING HOSPITALS NHS FT ,Apr-22,Pharmacy Drugs Inventory ,Pharmacy Drugs Inventory ,Roche Products Ltd,1322236108,"30,626.23",Pharmacy Drugs Inventory 
DEPARTMENT OF HEALTH,BLACKPOOL TEACHING HOSPITALS NHS FT ,Apr-22,Multi-Divisional charge ,Multi-Divisional charge ,St Helens and Knowsley Hospital Services NHS Trust,16812552,"800,000.00",Inter NHS Medical staff recharges
DEPARTMENT OF HEALTH,BLACKPOOL TEACHING HOSPITALS NHS FT ,Apr-22,Multi-Divisional charge ,Multi-Divisional charge ,St Helens and Knowsley Hospital Services NHS Trust,16812655,"52,570.47",Inter NHS Medical staff recharges
DEPARTMENT OF HEALTH,BLACKPOOL TEACHING HOSPITALS NHS FT ,Apr-22,Multi-Divisional charge ,Multi-Divisional charge ,St Helens and Knowsley Hospital Services NHS Trust,16812950,"800,000.00",Inter NHS Medical staff recharges
DEPARTMENT OF HEALTH,BLACKPOOL TEACHING HOSPITALS NHS FT ,Apr-22,Multi-Divisional charge ,Multi-Divisional charge ,NHS Supply Chain Co-ordination Limited,1122249745,"177,922.73",NHS Supply Chain Catalogue items
DEPARTMENT OF HEALTH,BLACKPOOL TEACHING HOSPITALS NHS FT ,Apr-22,Multi-Divisional charge ,Multi-Divisional charge ,NHS Supply Chain Co-ordination Limited,1123000961,"69,588.83",NHS Supply Chain Catalogue items
DEPARTMENT OF HEALTH,BLACKPOOL TEACHING HOSPITALS NHS FT ,Apr-22,Multi-Divisional charge ,Multi-Divisional charge ,NHS Supply Chain Co-ordination Limited,1123004232,"242,928.71",NHS Supply Chain Catalogue items
DEPARTMENT OF HEALTH,BLACKPOOL TEACHING HOSPITALS NHS FT ,Apr-22,Multi-Divisional charge ,Multi-Divisional charge ,NHS Supply Chain Co-ordination Limited,1123009799,"291,779.07",NHS Supply Chain Catalogue items
DEPARTMENT OF HEALTH,BLACKPOOL TEACHING HOSPITALS NHS FT ,Apr-22,Multi-Divisional charge ,Multi-Divisional charge ,NHS Supply Chain Co-ordination Limited,1123010025,"182,591.62",NHS Supply Chain Catalogue items
DEPARTMENT OF HEALTH,BLACKPOOL TEACHING HOSPITALS NHS FT ,Apr-22,Multi-Divisional charge ,Multi-Divisional charge ,NHS Supply Chain Co-ordination Limited,1123015093,"132,256.30",NHS Supply Chain Catalogue items
DEPARTMENT OF HEALTH,BLACKPOOL TEACHING HOSPITALS NHS FT ,Apr-22,Multi-Divisional charge ,Multi-Divisional charge ,Sme Hci Ltd,138878,"34,556.23",Multi-Divisional charge 
